[Event "*** Titled Tuesday Blitz"]
[Site "Chess.com"]
[Date "2019.01.01"]
[Round "4"]
[White "GhostOfGreenval"]
[Black "Rainmond"]
[Result "1/2-1/2"]
[WhiteElo "2740"]
[BlackElo "2791"]
[TimeControl "180+2"]
[EndTime "13:57:45 PST"]
[Termination "Game drawn by repetition"]

1. e4 {[%clk 0:03:00.1]} 1... g6 {[%clk 0:02:58.2]} 2. d4 {[%clk 0:02:58.3]}
2... Bg7 {[%clk 0:02:59.2]} 3. Nc3 {[%clk 0:03:00.2]} 3... d6 {[%clk 0:03:00.3]}
4. Be3 {[%clk 0:03:00.6]} 4... a6 {[%clk 0:03:01.2]} 5. a4 {[%clk 0:03:01]} 5...
Nd7 {[%clk 0:02:59.1]} 6. Qd2 {[%clk 0:02:57.4]} 6... h6 {[%clk 0:02:52.3]} 7.
Bc4 {[%clk 0:02:53.1]} 7... e6 {[%clk 0:02:51.9]} 8. f4 {[%clk 0:02:52.1]} 8...
Ne7 {[%clk 0:02:51.5]} 9. Nf3 {[%clk 0:02:52.8]} 9... d5 {[%clk 0:02:52.1]} 10.
Bd3 {[%clk 0:02:33.6]} 10... b6 {[%clk 0:02:41.2]} 11. a5 {[%clk 0:02:26.6]}
11... Bb7 {[%clk 0:02:32.7]} 12. axb6 {[%clk 0:02:25.5]} 12... cxb6 {[%clk
0:02:30.8]} 13. e5 {[%clk 0:02:24.2]} 13... h5 {[%clk 0:02:31.6]} 14. Qe2 {[%clk
0:02:22.6]} 14... Qc8 {[%clk 0:02:27.3]} 15. Ng5 {[%clk 0:02:21.4]} 15... Nc6
{[%clk 0:02:25.9]} 16. g4 {[%clk 0:02:17.8]} 16... hxg4 {[%clk 0:02:18.6]} 17.
Qxg4 {[%clk 0:02:19.7]} 17... Nf8 {[%clk 0:02:17.4]} 18. h4 {[%clk 0:02:11.6]}
18... Nb4 {[%clk 0:02:18.2]} 19. h5 {[%clk 0:02:12.8]} 19... gxh5 {[%clk
0:02:13.7]} 20. Rxh5 {[%clk 0:02:13.5]} 20... Nxd3+ {[%clk 0:02:13.9]} 21. cxd3
{[%clk 0:02:14.6]} 21... Rh6 {[%clk 0:01:58.5]} 22. Kd2 {[%clk 0:01:53.9]} 22...
Qd7 {[%clk 0:01:47.2]} 23. Rah1 {[%clk 0:01:44.1]} 23... Rg6 {[%clk 0:01:46.6]}
24. Qf3 {[%clk 0:01:21]} 24... O-O-O {[%clk 0:01:45.5]} 25. Rc1 {[%clk
0:01:20.1]} 25... Kb8 {[%clk 0:01:46.1]} 26. Nh3 {[%clk 0:01:12.1]} 26... Bc8
{[%clk 0:01:39.6]} 27. f5 {[%clk 0:01:07.3]} 27... exf5 {[%clk 0:01:40.2]} 28.
Nf4 {[%clk 0:01:08.9]} 28... Ne6 {[%clk 0:01:41.2]} 29. Nxg6 {[%clk 0:01:08.3]}
29... fxg6 {[%clk 0:01:41.9]} 30. Rh7 {[%clk 0:01:10]} 30... f4 {[%clk
0:01:34.8]} 31. Bxf4 {[%clk 0:00:54.2]} 31... Rf8 {[%clk 0:01:35.3]} 32. Qxd5
{[%clk 0:00:52.6]} 32... Qxd5 {[%clk 0:00:53.9]} 33. Nxd5 {[%clk 0:00:54.5]}
33... Bb7 {[%clk 0:00:54.8]} 34. Nxb6 {[%clk 0:00:33.8]} 34... Rxf4 {[%clk
0:00:55.3]} 35. d5 {[%clk 0:00:35.2]} 35... Rb4 {[%clk 0:00:51.4]} 36. dxe6
{[%clk 0:00:34.1]} 36... Rxb2+ {[%clk 0:00:50.7]} 37. Kc3 {[%clk 0:00:23.3]}
37... Bxe5+ {[%clk 0:00:48.8]} 38. d4 {[%clk 0:00:24.9]} 38... Rxb6 {[%clk
0:00:49.7]} 39. dxe5 {[%clk 0:00:25.6]} 39... Rxe6 {[%clk 0:00:50.6]} 40. Kd4
{[%clk 0:00:25.2]} 40... Rb6 {[%clk 0:00:46]} 41. Rh8+ {[%clk 0:00:22.4]} 41...
Ka7 {[%clk 0:00:46.2]} 42. Re8 {[%clk 0:00:20.7]} 42... a5 {[%clk 0:00:46.7]}
43. e6 {[%clk 0:00:21.3]} 43... a4 {[%clk 0:00:47.7]} 44. e7 {[%clk 0:00:22]}
44... Re6 {[%clk 0:00:48.2]} 45. Rc4 {[%clk 0:00:16.2]} 45... Kb6 {[%clk
0:00:40.6]} 46. Rb4+ {[%clk 0:00:08.4]} 46... Kc7 {[%clk 0:00:40.1]} 47. Kc3
{[%clk 0:00:05.7]} 47... Bc6 {[%clk 0:00:35.8]} 48. Rc4 {[%clk 0:00:02.7]} 48...
Kd7 {[%clk 0:00:32.4]} 49. Rd8+ {[%clk 0:00:03.6]} 49... Kxe7 {[%clk 0:00:33.3]}
50. Rd2 {[%clk 0:00:04.9]} 50... Be8 {[%clk 0:00:30.8]} 51. Kb4 {[%clk
0:00:05.9]} 51... g5 {[%clk 0:00:31.2]} 52. Kc3 {[%clk 0:00:06.4]} 52... Re5
{[%clk 0:00:30.9]} 53. Rg4 {[%clk 0:00:06.9]} 53... Bd7 {[%clk 0:00:29.2]} 54.
Rxd7+ {[%clk 0:00:06.5]} 54... Kxd7 {[%clk 0:00:30]} 55. Rxa4 {[%clk 0:00:08.4]}
55... Rd5 {[%clk 0:00:30.2]} 56. Rd4 {[%clk 0:00:05.5]} 56... Ke6 {[%clk
0:00:28.4]} 57. Rxd5 {[%clk 0:00:06.6]} 57... Kxd5 {[%clk 0:00:29.4]} 58. Kd3
{[%clk 0:00:08.5]} 58... Ke5 {[%clk 0:00:21.6]} 59. Ke3 {[%clk 0:00:09.7]} 59...
g4 {[%clk 0:00:23.1]} 60. Kf2 {[%clk 0:00:08.9]} 60... Kf4 {[%clk 0:00:24.3]}
61. Kg2 {[%clk 0:00:10.3]} 61... g3 {[%clk 0:00:25.5]} 62. Kg1 {[%clk
0:00:11.7]} 62... Ke3 {[%clk 0:00:25.1]} 63. Kg2 {[%clk 0:00:12.8]} 63... Kf4
{[%clk 0:00:26.5]} 64. Kg1 {[%clk 0:00:14.7]} 64... Kg4 {[%clk 0:00:27.1]} 65.
Kg2 {[%clk 0:00:14.1]} 65... Kh4 {[%clk 0:00:28.4]} 66. Kg1 {[%clk 0:00:15.3]}
66... Kh3 {[%clk 0:00:29.4]} 67. Kh1 {[%clk 0:00:16.6]} 67... Kg4 {[%clk
0:00:29.9]} 68. Kg2 {[%clk 0:00:18.5]} 68... Kf4 {[%clk 0:00:31]} 69. Kg1 {[%clk
0:00:18.5]} 69... Kf3 {[%clk 0:00:30.7]} 70. Kf1 {[%clk 0:00:19.3]} 70... Kg4
{[%clk 0:00:31.8]} 71. Kg2 {[%clk 0:00:20.4]} 1/2-1/2

[Event "*** Titled Tuesday Blitz"]
[Site "Chess.com"]
[Date "2019.01.01"]
[Round "4"]
[White "talento10"]
[Black "VladDobrov"]
[Result "0-1"]
[WhiteElo "2542"]
[BlackElo "2838"]
[TimeControl "180+2"]
[EndTime "13:57:47 PST"]
[Termination "VladDobrov won by resignation"]

1. e4 {[%clk 0:03:01.9]} 1... c6 {[%clk 0:03:00.6]} 2. d4 {[%clk 0:03:02.2]}
2... d5 {[%clk 0:02:56.6]} 3. e5 {[%clk 0:03:03]} 3... Bf5 {[%clk 0:02:57.2]} 4.
h4 {[%clk 0:03:03.3]} 4... Qc7 {[%clk 0:02:56.4]} 5. g4 {[%clk 0:03:00.9]} 5...
Bd7 {[%clk 0:02:57]} 6. Nc3 {[%clk 0:03:00.9]} 6... e6 {[%clk 0:02:57.7]} 7. f4
{[%clk 0:03:01.2]} 7... h5 {[%clk 0:02:58.2]} 8. g5 {[%clk 0:02:59.6]} 8... c5
{[%clk 0:02:56.9]} 9. Be3 {[%clk 0:02:56.6]} 9... a6 {[%clk 0:02:56.5]} 10. Nf3
{[%clk 0:02:55.1]} 10... Ne7 {[%clk 0:02:56.1]} 11. Bd3 {[%clk 0:02:42.3]} 11...
c4 {[%clk 0:02:55.5]} 12. Be2 {[%clk 0:02:43.6]} 12... Nf5 {[%clk 0:02:56.8]}
13. Bf2 {[%clk 0:02:44.4]} 13... g6 {[%clk 0:02:58.3]} 14. Qd2 {[%clk
0:02:44.7]} 14... b5 {[%clk 0:02:59.1]} 15. a3 {[%clk 0:02:32.4]} 15... Nc6
{[%clk 0:03:00]} 16. O-O {[%clk 0:02:31.2]} 16... Rb8 {[%clk 0:03:00.9]} 17. Na2
{[%clk 0:02:29.2]} 17... Be7 {[%clk 0:03:00.1]} 18. Nb4 {[%clk 0:02:30.5]} 18...
Qb7 {[%clk 0:02:50.4]} 19. c3 {[%clk 0:02:31.1]} 19... Na7 {[%clk 0:02:49.6]}
20. Nc2 {[%clk 0:02:29.7]} 20... a5 {[%clk 0:02:49.7]} 21. Ne3 {[%clk 0:02:28]}
21... Nxe3 {[%clk 0:02:48.8]} 22. Bxe3 {[%clk 0:02:28.6]} 22... Kf8 {[%clk
0:02:36.1]} 23. Ne1 {[%clk 0:02:04.5]} 23... Kg7 {[%clk 0:02:35.6]} 24. Nc2
{[%clk 0:02:00.4]} 24... Nc6 {[%clk 0:02:36.2]} 25. Bf3 {[%clk 0:01:55.4]} 25...
Qc7 {[%clk 0:02:35.3]} 26. Rf2 {[%clk 0:01:50.6]} 26... Rhd8 {[%clk 0:02:33.4]}
27. Rg2 {[%clk 0:01:42.8]} 27... Bc8 {[%clk 0:02:25.8]} 28. f5 {[%clk
0:01:43.4]} 28... exf5 {[%clk 0:02:27]} 29. Bf4 {[%clk 0:01:39.5]} 29... Be6
{[%clk 0:02:27.3]} 30. Ne3 {[%clk 0:01:35.8]} 30... Qd7 {[%clk 0:02:25.1]} 31.
Kh2 {[%clk 0:01:26.9]} 31... Rb6 {[%clk 0:02:18.8]} 32. Qe2 {[%clk 0:01:18.9]}
32... Rh8 {[%clk 0:02:16.9]} 33. Qd1 {[%clk 0:01:14.2]} 33... Rbb8 {[%clk
0:02:16.4]} 34. Qe2 {[%clk 0:01:14.7]} 34... b4 {[%clk 0:02:15.8]} 35. axb4
{[%clk 0:01:08.5]} 35... axb4 {[%clk 0:02:17.7]} 36. Rf2 {[%clk 0:01:10.1]}
36... bxc3 {[%clk 0:02:17.2]} 37. bxc3 {[%clk 0:01:10.8]} 37... Rb3 {[%clk
0:02:18.5]} 38. Qe1 {[%clk 0:01:09.2]} 38... Rhb8 {[%clk 0:02:17.1]} 39. Bd1
{[%clk 0:00:57.9]} 39... Rb2 {[%clk 0:02:14.8]} 40. Rxb2 {[%clk 0:00:59]} 40...
Rxb2+ {[%clk 0:02:15]} 41. Kg1 {[%clk 0:01:00.1]} 41... Qd8 {[%clk 0:01:52.1]}
42. Bc2 {[%clk 0:01:00.1]} 42... Na5 {[%clk 0:01:47.8]} 43. Qc1 {[%clk
0:00:55.2]} 43... Rb8 {[%clk 0:01:46.5]} 44. Qd1 {[%clk 0:00:56.4]} 44... Nb3
{[%clk 0:01:41.8]} 45. Ra6 {[%clk 0:00:54.8]} 45... Rb6 {[%clk 0:01:35.2]} 46.
Ra7 {[%clk 0:00:51.9]} 46... Bf8 {[%clk 0:01:08.7]} 47. Ng2 {[%clk 0:00:35.8]}
47... Qb8 {[%clk 0:01:04.4]} 48. Ra2 {[%clk 0:00:34.3]} 48... Rb5 {[%clk
0:00:58.1]} 49. Ne3 {[%clk 0:00:34.6]} 49... Na5 {[%clk 0:00:56.3]} 50. Ng2
{[%clk 0:00:32.6]} 50... Nc6 {[%clk 0:00:56]} 51. Ne3 {[%clk 0:00:33.6]} 51...
Rb2 {[%clk 0:00:54.9]} 52. Qa1 {[%clk 0:00:31.9]} 52... Rxa2 {[%clk 0:00:49.2]}
53. Qxa2 {[%clk 0:00:33.8]} 53... Qb6 {[%clk 0:00:50.5]} 54. Kf1 {[%clk
0:00:31.5]} 54... Nxd4 {[%clk 0:00:51.5]} 55. cxd4 {[%clk 0:00:31.8]} 55... Qxd4
{[%clk 0:00:52.7]} 56. Ng2 {[%clk 0:00:29.8]} 56... Qc3 {[%clk 0:00:47.7]} 57.
Ba4 {[%clk 0:00:24.3]} 57... d4 {[%clk 0:00:30.6]} 58. Bc6 {[%clk 0:00:24.7]}
58... d3 {[%clk 0:00:28.9]} 59. Qd2 {[%clk 0:00:22.8]} 59... Qa1+ {[%clk
0:00:29]} 60. Kf2 {[%clk 0:00:22.7]} 60... Bc5+ {[%clk 0:00:29.1]} 61. Kg3
{[%clk 0:00:23.1]} 61... Qd4 {[%clk 0:00:26]} 62. Bb5 {[%clk 0:00:15.6]} 62...
Bd5 {[%clk 0:00:16.4]} 63. Qe3 {[%clk 0:00:15.2]} 63... Be4 {[%clk 0:00:05.5]}
64. e6 {[%clk 0:00:15.4]} 64... Qxe3+ {[%clk 0:00:06.3]} 65. Bxe3 {[%clk
0:00:15.4]} 65... Bxe3 {[%clk 0:00:06.8]} 66. Nxe3 {[%clk 0:00:16.7]} 66... fxe6
{[%clk 0:00:05.8]} 67. Bxc4 {[%clk 0:00:17.4]} 67... e5 {[%clk 0:00:07.4]} 68.
Kf2 {[%clk 0:00:17.6]} 68... f4 {[%clk 0:00:08.9]} 69. Nd5 {[%clk 0:00:18.8]}
69... Bf5 {[%clk 0:00:06.8]} 70. Nc3 {[%clk 0:00:19.3]} 70... e4 {[%clk
0:00:07.9]} 71. Bd5 {[%clk 0:00:18.8]} 71... e3+ {[%clk 0:00:08.2]} 72. Kf3
{[%clk 0:00:20.3]} 72... d2 {[%clk 0:00:09.1]} 73. Kxf4 {[%clk 0:00:21.1]} 73...
e2 {[%clk 0:00:10.7]} 0-1

[Event "*** Titled Tuesday Blitz"]
[Site "Chess.com"]
[Date "2019.01.01"]
[Round "4"]
[White "Triumphmate"]
[Black "DanielMieles1985"]
[Result "1/2-1/2"]
[WhiteElo "2208"]
[BlackElo "2102"]
[TimeControl "180+2"]
[EndTime "13:57:50 PST"]
[Termination "Game drawn - insufficient material"]

1. e4 {[%clk 0:03:01.9]} 1... e5 {[%clk 0:03:00.9]} 2. Nf3 {[%clk 0:03:02.7]}
2... Nc6 {[%clk 0:03:02.1]} 3. Nc3 {[%clk 0:03:02.9]} 3... Nf6 {[%clk
0:03:02.7]} 4. Bb5 {[%clk 0:03:04.1]} 4... Bd6 {[%clk 0:03:01.1]} 5. O-O {[%clk
0:03:04.6]} 5... O-O {[%clk 0:03:01.1]} 6. d3 {[%clk 0:03:04.2]} 6... Nd4 {[%clk
0:03:01.2]} 7. Bc4 {[%clk 0:03:01.4]} 7... c6 {[%clk 0:03:00.6]} 8. Be3 {[%clk
0:02:59.2]} 8... Bc7 {[%clk 0:02:25.6]} 9. Nxd4 {[%clk 0:02:42.8]} 9... exd4
{[%clk 0:02:26.2]} 10. Bxd4 {[%clk 0:02:44.2]} 10... d5 {[%clk 0:02:27.4]} 11.
Bxf6 {[%clk 0:02:44.1]} 11... Qxf6 {[%clk 0:02:24.7]} 12. exd5 {[%clk
0:02:45.5]} 12... Qh6 {[%clk 0:02:15.1]} 13. g3 {[%clk 0:02:38]} 13... Qh3
{[%clk 0:02:07.3]} 14. Qf3 {[%clk 0:02:36.1]} 14... Bg4 {[%clk 0:02:07.5]} 15.
Qg2 {[%clk 0:02:37.1]} 15... Qh5 {[%clk 0:02:08.7]} 16. f3 {[%clk 0:02:02.4]}
16... Bh3 {[%clk 0:01:57.1]} 17. Qd2 {[%clk 0:01:59.4]} 17... Bxf1 {[%clk
0:01:52.1]} 18. Rxf1 {[%clk 0:02:01.3]} 18... b5 {[%clk 0:01:52.8]} 19. Bb3
{[%clk 0:01:59.9]} 19... b4 {[%clk 0:01:51.5]} 20. Ne2 {[%clk 0:01:55.4]} 20...
cxd5 {[%clk 0:01:46.1]} 21. Qxb4 {[%clk 0:01:50.7]} 21... Rfe8 {[%clk
0:01:35.9]} 22. Nf4 {[%clk 0:01:40.8]} 22... Bxf4 {[%clk 0:01:34.9]} 23. Qxf4
{[%clk 0:01:42.7]} 23... Re2 {[%clk 0:01:36]} 24. h4 {[%clk 0:01:43.8]} 24...
Rae8 {[%clk 0:01:33.8]} 25. Rf2 {[%clk 0:01:42.7]} 25... Re1+ {[%clk 0:01:28.1]}
26. Kg2 {[%clk 0:01:43.5]} 26... h6 {[%clk 0:01:24.8]} 27. c3 {[%clk 0:01:38.9]}
27... Rb1 {[%clk 0:00:59.6]} 28. d4 {[%clk 0:01:26.2]} 28... Ree1 {[%clk
0:00:54.8]} 29. Qb8+ {[%clk 0:01:26]} 29... Kh7 {[%clk 0:00:52.6]} 30. Bc2+
{[%clk 0:01:27.3]} 30... g6 {[%clk 0:00:54]} 31. Bxb1 {[%clk 0:01:28.4]} 31...
Rxb1 {[%clk 0:00:55.5]} 32. Qf4 {[%clk 0:01:28.4]} 32... Kg7 {[%clk 0:00:49.3]}
33. Qe5+ {[%clk 0:01:27.1]} 33... Qxe5 {[%clk 0:00:48.2]} 34. dxe5 {[%clk
0:01:29]} 34... Rd1 {[%clk 0:00:47.8]} 35. Re2 {[%clk 0:01:26]} 35... Kf8 {[%clk
0:00:43.3]} 36. Kf2 {[%clk 0:01:24.7]} 36... Ke7 {[%clk 0:00:43]} 37. f4 {[%clk
0:01:25.7]} 37... Ke6 {[%clk 0:00:40.6]} 38. Kf3 {[%clk 0:01:23.6]} 38... Rf1+
{[%clk 0:00:38.2]} 39. Rf2 {[%clk 0:01:24.8]} 39... Rh1 {[%clk 0:00:36.5]} 40.
Kg2 {[%clk 0:01:23.2]} 40... Re1 {[%clk 0:00:35.8]} 41. g4 {[%clk 0:01:23.9]}
41... h5 {[%clk 0:00:34.6]} 42. f5+ {[%clk 0:00:59.4]} 42... Kxe5 {[%clk
0:00:32.7]} 43. fxg6 {[%clk 0:00:56.3]} 43... fxg6 {[%clk 0:00:34]} 44. gxh5
{[%clk 0:00:55.3]} 44... gxh5 {[%clk 0:00:33.8]} 45. Kg3 {[%clk 0:00:54]} 45...
Rg1+ {[%clk 0:00:28.8]} 46. Kf3 {[%clk 0:00:51.5]} 46... Rg4 {[%clk 0:00:28.6]}
47. Re2+ {[%clk 0:00:52.4]} 47... Kd6 {[%clk 0:00:29.6]} 48. Rg2 {[%clk
0:00:48.1]} 48... Rxh4 {[%clk 0:00:29.4]} 49. Rg6+ {[%clk 0:00:47.6]} 49... Kc5
{[%clk 0:00:29.1]} 50. Rg7 {[%clk 0:00:43]} 50... Rh2 {[%clk 0:00:28.6]} 51. Rb7
{[%clk 0:00:42.3]} 51... a5 {[%clk 0:00:27.3]} 52. a4 {[%clk 0:00:41.9]} 52...
Kc4 {[%clk 0:00:28.2]} 53. Rb5 {[%clk 0:00:41.2]} 53... d4 {[%clk 0:00:24.2]}
54. cxd4 {[%clk 0:00:41.3]} 54... Kxd4 {[%clk 0:00:25]} 55. Kg3 {[%clk
0:00:37.6]} 55... Re2 {[%clk 0:00:21.6]} 56. b3 {[%clk 0:00:37.2]} 56... Kc3
{[%clk 0:00:22.1]} 57. Kf3 {[%clk 0:00:29.2]} 57... Rb2 {[%clk 0:00:21.9]} 58.
Rxa5 {[%clk 0:00:22.4]} 58... Rxb3 {[%clk 0:00:19.1]} 59. Rxh5 {[%clk
0:00:22.9]} 59... Ra3 {[%clk 0:00:19.6]} 60. a5 {[%clk 0:00:22.7]} 60... Kb4+
{[%clk 0:00:20.7]} 61. Ke4 {[%clk 0:00:23.5]} 61... Rxa5 {[%clk 0:00:21.6]} 62.
Rh8 {[%clk 0:00:24]} 62... Rb5 {[%clk 0:00:22.7]} 63. Ra8 {[%clk 0:00:24.6]}
63... Rb7 {[%clk 0:00:23.3]} 64. Kd5 {[%clk 0:00:25.1]} 64... Rd7+ {[%clk
0:00:22.9]} 65. Kc6 {[%clk 0:00:25.1]} 65... Rd2 {[%clk 0:00:24]} 66. Rb8+
{[%clk 0:00:26]} 66... Kc3 {[%clk 0:00:25.2]} 67. Rh8 {[%clk 0:00:27.5]} 67...
Rd3 {[%clk 0:00:26.1]} 68. Kc5 {[%clk 0:00:29]} 68... Re3 {[%clk 0:00:27.5]} 69.
Ra8 {[%clk 0:00:30]} 69... Rd3 {[%clk 0:00:28.7]} 70. Ra3+ {[%clk 0:00:31]}
70... Kd2 {[%clk 0:00:30.1]} 71. Ra2+ {[%clk 0:00:32.2]} 71... Ke3 {[%clk
0:00:31.2]} 72. Kc4 {[%clk 0:00:33.7]} 72... Rd4+ {[%clk 0:00:32.1]} 73. Kc5
{[%clk 0:00:33.9]} 73... Rd3 {[%clk 0:00:33.5]} 74. Ra8 {[%clk 0:00:35.5]} 74...
Rd2 {[%clk 0:00:34.7]} 75. Kc4 {[%clk 0:00:36.4]} 75... Rd4+ {[%clk 0:00:35.4]}
76. Kc3 {[%clk 0:00:38]} 76... Rd3+ {[%clk 0:00:36.9]} 77. Kc2 {[%clk
0:00:39.6]} 77... Rd2+ {[%clk 0:00:38.3]} 78. Kc1 {[%clk 0:00:41.1]} 78... Rd4
{[%clk 0:00:38.9]} 79. Re8+ {[%clk 0:00:41.8]} 79... Kd3 {[%clk 0:00:40]} 80.
Rh8 {[%clk 0:00:41.7]} 80... Kc3 {[%clk 0:00:40]} 81. Rh3+ {[%clk 0:00:42.1]}
81... Rd3 {[%clk 0:00:41.2]} 82. Rxd3+ {[%clk 0:00:43.1]} 82... Kxd3 {[%clk
0:00:23.6]} 1/2-1/2

[Event "*** Titled Tuesday Blitz"]
[Site "Chess.com"]
[Date "2019.01.01"]
[Round "4"]
[White "Zufi1811"]
[Black "itisabigworld"]
[Result "1/2-1/2"]
[WhiteElo "2404"]
[BlackElo "2309"]
[TimeControl "180+2"]
[EndTime "13:58:18 PST"]
[Termination "Game drawn by repetition"]

1. e4 {[%clk 0:03:01.9]} 1... b6 {[%clk 0:02:58.6]} 2. d4 {[%clk 0:03:01.1]}
2... Bb7 {[%clk 0:02:59.8]} 3. Bd3 {[%clk 0:03:02.5]} 3... e6 {[%clk 0:03:01.1]}
4. Qe2 {[%clk 0:03:01.6]} 4... Nf6 {[%clk 0:03:02.1]} 5. Nf3 {[%clk 0:02:53.4]}
5... c5 {[%clk 0:03:02.9]} 6. d5 {[%clk 0:02:54]} 6... Be7 {[%clk 0:02:56.4]} 7.
c4 {[%clk 0:02:53.4]} 7... exd5 {[%clk 0:02:52.3]} 8. exd5 {[%clk 0:02:55.3]}
8... d6 {[%clk 0:02:53]} 9. O-O {[%clk 0:02:55.8]} 9... O-O {[%clk 0:02:54.1]}
10. Nc3 {[%clk 0:02:54.3]} 10... Nbd7 {[%clk 0:02:53.6]} 11. h3 {[%clk
0:02:54.3]} 11... Re8 {[%clk 0:02:54.4]} 12. Bf4 {[%clk 0:02:54.7]} 12... a6
{[%clk 0:02:55.4]} 13. Rfe1 {[%clk 0:02:40.2]} 13... Nf8 {[%clk 0:02:55.3]} 14.
a4 {[%clk 0:02:27.6]} 14... Ng6 {[%clk 0:02:52.9]} 15. Bh2 {[%clk 0:02:27.6]}
15... Nh5 {[%clk 0:02:51.8]} 16. Qd2 {[%clk 0:02:16.7]} 16... Nf6 {[%clk
0:02:50.5]} 17. Re2 {[%clk 0:02:09.4]} 17... Qd7 {[%clk 0:02:51.4]} 18. Rae1
{[%clk 0:02:09.6]} 18... Bf8 {[%clk 0:02:52.6]} 19. Ng5 {[%clk 0:02:06.4]} 19...
Rxe2 {[%clk 0:02:50.1]} 20. Rxe2 {[%clk 0:02:08.3]} 20... Re8 {[%clk 0:02:50.8]}
21. Nge4 {[%clk 0:02:05]} 21... Nxe4 {[%clk 0:02:49.8]} 22. Rxe4 {[%clk
0:01:53.7]} 22... Rxe4 {[%clk 0:02:49.4]} 23. Nxe4 {[%clk 0:01:45.8]} 23... h6
{[%clk 0:02:39]} 24. b3 {[%clk 0:00:58.5]} 24... f5 {[%clk 0:02:28.8]} 25. Nc3
{[%clk 0:00:55.7]} 25... Ne5 {[%clk 0:02:15.7]} 26. Bc2 {[%clk 0:00:53]} 26...
Bc8 {[%clk 0:02:09.5]} 27. Ne2 {[%clk 0:00:47.8]} 27... g5 {[%clk 0:02:05.2]}
28. Bxe5 {[%clk 0:00:44.3]} 28... dxe5 {[%clk 0:02:04.9]} 29. Ng3 {[%clk
0:00:38.9]} 29... Qf7 {[%clk 0:02:02.9]} 30. f3 {[%clk 0:00:33.8]} 30... Bd6
{[%clk 0:02:00.9]} 31. Qd3 {[%clk 0:00:34.3]} 31... e4 {[%clk 0:01:56.2]} 32.
fxe4 {[%clk 0:00:36.2]} 32... f4 {[%clk 0:01:55]} 33. Nf5 {[%clk 0:00:34.9]}
33... Bxf5 {[%clk 0:01:55.1]} 34. exf5 {[%clk 0:00:36.8]} 34... Qf6 {[%clk
0:01:54.3]} 35. Qe4 {[%clk 0:00:33.9]} 35... Be5 {[%clk 0:01:54.6]} 36. Bd1
{[%clk 0:00:29.5]} 36... Kg7 {[%clk 0:01:50.8]} 37. Bh5 {[%clk 0:00:28.9]} 37...
Bd4+ {[%clk 0:01:47.6]} 38. Kf1 {[%clk 0:00:28.3]} 38... Qe5 {[%clk 0:01:47]}
39. Qxe5+ {[%clk 0:00:26.3]} 39... Bxe5 {[%clk 0:01:48.9]} 40. Ke2 {[%clk
0:00:26.7]} 40... Kf6 {[%clk 0:01:50.2]} 41. Bg4 {[%clk 0:00:27.9]} 41... a5
{[%clk 0:01:49.4]} 42. Kd3 {[%clk 0:00:28.3]} 42... Bd6 {[%clk 0:01:48.4]} 43.
Ke4 {[%clk 0:00:29.8]} 43... Ke7 {[%clk 0:01:47.2]} 44. Bd1 {[%clk 0:00:27.3]}
44... Kf6 {[%clk 0:01:48.2]} 45. Bc2 {[%clk 0:00:28.2]} 45... Ke7 {[%clk
0:01:49]} 46. Kf3 {[%clk 0:00:28.7]} 46... h5 {[%clk 0:01:46.4]} 47. Bd1 {[%clk
0:00:24.2]} 47... Kf6 {[%clk 0:01:46.2]} 48. Ke4 {[%clk 0:00:25.2]} 48... h4
{[%clk 0:01:47.2]} 49. Bc2 {[%clk 0:00:22.9]} 49... Ke7 {[%clk 0:01:48]} 50. Kf3
{[%clk 0:00:22.9]} 50... Kf6 {[%clk 0:01:48.5]} 51. Kg4 {[%clk 0:00:24.3]} 51...
Be7 {[%clk 0:01:48.5]} 52. Be4 {[%clk 0:00:22.5]} 52... Bf8 {[%clk 0:01:48.3]}
53. Kh5 {[%clk 0:00:21.8]} 53... Be7 {[%clk 0:01:49.1]} 54. Kh6 {[%clk
0:00:22.7]} 54... Bd6 {[%clk 0:01:51]} 55. Kh7 {[%clk 0:00:23.3]} 55... Be7
{[%clk 0:01:52.4]} 56. Kg8 {[%clk 0:00:24.3]} 56... Bd6 {[%clk 0:01:53.8]} 57.
Kh7 {[%clk 0:00:22.9]} 57... Be7 {[%clk 0:01:55]} 58. Kh6 {[%clk 0:00:23.8]}
58... Bd6 {[%clk 0:01:56.3]} 59. Kh5 {[%clk 0:00:25.1]} 59... Be7 {[%clk
0:01:57.2]} 60. Kg4 {[%clk 0:00:26.6]} 60... Bd6 {[%clk 0:01:57]} 61. Bc2 {[%clk
0:00:28.1]} 61... Be7 {[%clk 0:01:54.6]} 62. Kf3 {[%clk 0:00:27.7]} 62... Bd6
{[%clk 0:01:55.6]} 63. Ke4 {[%clk 0:00:28.9]} 63... Ke7 {[%clk 0:01:56.5]} 64.
Bd1 {[%clk 0:00:26]} 64... Kf6 {[%clk 0:01:58.4]} 65. Bg4 {[%clk 0:00:24.9]}
65... Ke7 {[%clk 0:01:59.2]} 66. Bf3 {[%clk 0:00:26.3]} 66... Kf6 {[%clk
0:02:01.1]} 67. Bg4 {[%clk 0:00:25.3]} 67... Ke7 {[%clk 0:02:01.5]} 68. Bf3
{[%clk 0:00:24.6]} 68... Kf7 {[%clk 0:02:01.7]} 69. Bd1 {[%clk 0:00:21.5]} 69...
Kg7 {[%clk 0:02:01.3]} 70. Kf3 {[%clk 0:00:19.1]} 70... Kf6 {[%clk 0:02:02.3]}
71. Kg4 {[%clk 0:00:19.9]} 71... Be5 {[%clk 0:02:02.4]} 72. Bc2 {[%clk 0:00:20]}
72... Bc7 {[%clk 0:02:01.4]} 73. Kf3 {[%clk 0:00:18.7]} 73... Ke5 {[%clk
0:02:00.3]} 74. Kg4 {[%clk 0:00:16.7]} 74... Kf6 {[%clk 0:02:00.7]} 75. Kh5
{[%clk 0:00:16]} 75... Bd6 {[%clk 0:02:01.4]} 76. Kg4 {[%clk 0:00:15.2]} 76...
Bf8 {[%clk 0:02:01.6]} 77. Be4 {[%clk 0:00:16.4]} 77... Be7 {[%clk 0:02:01.6]}
78. Bc2 {[%clk 0:00:17.8]} 78... Bd6 {[%clk 0:02:01.9]} 79. Kf3 {[%clk
0:00:08.7]} 79... Ke5 {[%clk 0:02:01.1]} 80. Kg4 {[%clk 0:00:09.6]} 80... Be7
{[%clk 0:02:01.9]} 81. Kf3 {[%clk 0:00:10.4]} 81... Kd4 {[%clk 0:01:50.4]} 82.
Kg4 {[%clk 0:00:11.1]} 82... Ke5 {[%clk 0:01:50.9]} 83. Bd1 {[%clk 0:00:08.8]}
83... Kf6 {[%clk 0:01:49.7]} 84. Bc2 {[%clk 0:00:09.4]} 84... Bd6 {[%clk
0:01:49.4]} 85. Kf3 {[%clk 0:00:10.4]} 85... Bc7 {[%clk 0:01:47.7]} 86. Kg4
{[%clk 0:00:11.3]} 86... Bb8 {[%clk 0:01:47.6]} 87. Kf3 {[%clk 0:00:12.8]} 87...
Be5 {[%clk 0:01:47.7]} 88. Kg4 {[%clk 0:00:14.1]} 88... Bc7 {[%clk 0:01:46]} 89.
Kf3 {[%clk 0:00:14.5]} 89... Bd8 {[%clk 0:01:41.4]} 90. Kg4 {[%clk 0:00:15.4]}
90... Be7 {[%clk 0:01:41]} 91. Kf3 {[%clk 0:00:16]} 91... Bf8 {[%clk 0:01:41.3]}
92. Ke4 {[%clk 0:00:14.4]} 92... Bd6 {[%clk 0:01:41.6]} 93. Kf3 {[%clk
0:00:15.2]} 93... Ke5 {[%clk 0:01:41.8]} 94. Kg4 {[%clk 0:00:15.8]} 94... Kf6
{[%clk 0:01:42.6]} 1/2-1/2